bitfinex-derivatives/quotes_SOLF0:USTF0_20250831
["timestamp","ask_amount","ask_price","bid_price","bid_amount"]
[1756664872047,2.69099594,205.16,205.06,4.09891349]
[1756664872247,119.12,205.15,205.06,4.09891349]
[1756664872741,119.12,205.14,205.06,4.09891349]
[1756664874750,119.12,205.14,205.07,7.76]
[1756664876349,119.12,205.14,205.07,11.85891349]
[1756664879354,2.69099594,205.16,205.07,11.85891349]
[1756664879752,119.1,205.15,205.07,11.85891349]
[1756664879950,2.69099594,205.16,205.07,11.85891349]
[1756664880250,119.1,205.14,205.07,11.85891349]
[1756664881353,331.25962119,205.19,205.08,7.76]
[1756664881553,331.25962119,205.19,205.1,4.09891349]
[1756664881751,119.1,205.18,205.1,4.09891349]
[1756664882454,119.1,205.18,205.09,4.09891349]
[1756664887464,2.69099594,205.16,205.08,4.09891349]
[1756664887654,2.69099594,205.16,205.07,4.09891349]
[1756664888056,2.69099594,205.13,205.07,4.09891349]
[1756664888256,119.1,205.12,205.07,4.09891349]
[1756664893660,2.69099594,205.09,205.03,4.09891349]
[1756664894066,2.69099594,205.09,205.02,4.09891349]
[1756664894267,2.69099594,205.09,205.01,4.09891349]
[1756664895858,119.1,205.08,205.01,4.09891349]
[1756664896867,2.69099594,205.09,205.01,4.09891349]
[1756664897069,119.1,205.08,205.01,4.09891349]
[1756664897368,119.1,205.08,205.0,11.87891349]
[1756664897563,2.69099594,205.09,205.0,11.87891349]
[1756664898269,4.08,205.08,205.0,11.87891349]
[1756664898766,2.69099594,205.09,205.0,11.87891349]
[1756664898965,17.94,205.08,205.0,11.87891349]
[1756664899163,2.69099594,205.09,205.0,11.87891349]
[1756664899364,31.1,205.08,205.0,11.87891349]
[1756664901670,2.69099594,205.09,205.01,7.78]
[1756664901869,43.6,205.07,205.01,7.78]
[1756664902263,55.48,205.07,205.01,7.78]
[1756664902471,66.76,205.08,205.01,11.88224646]
[1756664902666,66.76,205.08,205.02,7.78]
[1756664912883,69.45099594,205.08,205.01,4.10224646]
[1756664914176,2.69099594,205.08,205.01,11.88224646]
[1756664914381,80.13099594,205.08,205.01,11.88224646]
[1756664914582,2.69099594,205.08,205.01,11.88224646]
[1756664914783,16.69099594,205.08,205.01,11.88224646]
[1756664915784,14.0,205.08,205.01,11.88224646]
[1756664919286,2.69099594,205.11,205.01,11.88224646]
[1756664919882,2.69099594,205.15,205.02,7.41]
[1756664920186,2.3,205.14,205.03,7.41]
[1756664920384,2.3,205.14,205.05,7.41]
[1756664929285,2.69099594,205.15,205.05,7.41]
[1756664929485,85.04,205.14,205.05,7.41]
[1756664929681,94.7,205.17,205.08,7.41]
[1756664935084,97.39099594,205.17,205.08,7.41]
[1756664936485,2.69099594,205.14,205.08,7.41]
[1756664936690,2.69099594,205.14,205.05,11.51224646]
[1756664938899,2.69099594,205.14,205.06,7.41]
[1756664943806,119.06,205.13,205.06,2.69099594]
[1756664944005,119.06,205.13,205.07,7.41]
[1756664950105,119.04,205.12,205.07,11.51245645]
[1756664950308,119.04,205.13,205.07,11.51245645]
[1756664952415,2.69099594,205.18,205.07,11.51245645]
[1756664952612,119.04,205.17,205.08,7.66]
[1756664952813,119.04,205.16,205.08,7.66]
[1756664954013,1.72549208,205.14,205.08,9.38549208]
[1756664954309,119.04,205.16,205.08,9.38549208]
[1756664954515,1.72549208,205.14,205.08,9.38549208]
[1756664955213,13.52,205.13,205.08,1.72549208]
[1756664955416,13.52,205.13,205.09,7.66]
[1756664955615,36.04,205.12,205.09,7.66]
[1756664956015,36.04,205.12,205.08,1.72549208]
[1756664956314,36.04,205.12,205.09,7.66]
[1756664958418,36.04,205.12,205.08,1.72549208]
[1756664958617,36.04,205.12,205.1,1.72549208]
[1756664959117,36.04,205.12,205.11,7.66]
[1756664959720,36.04,205.12,205.1,1.72549208]
[1756664960020,36.04,205.12,205.08,9.38549208]
[1756664960220,36.04,205.12,205.09,7.66]
[1756664960813,1.72549208,205.15,205.09,7.66]
[1756664961018,14.66,205.14,205.09,7.66]
[1756664961315,27.4,205.13,205.09,7.66]
[1756664963924,41.20549208,205.14,205.09,7.66]
[1756664964223,1.72549208,205.14,205.09,7.66]
[1756664964424,52.68549208,205.14,205.09,7.66]
[1756664965425,1.72549208,205.14,205.09,7.66]
[1756664965726,15.16549208,205.14,205.09,7.66]
[1756664966028,1.72549208,205.14,205.09,7.66]
[1756664966226,15.14549208,205.14,205.09,7.66]
[1756664966427,15.14549208,205.14,205.07,4.10245645]
[1756664966628,1.72549208,205.1,205.05,11.76245645]
[1756664966928,1.72549208,205.1,205.05,7.66]
[1756664967723,1.72549208,205.08,205.04,4.10245645]
[1756664967926,1.72549208,205.08,205.03,5.82794853]
[1756664968228,1.72549208,205.08,205.04,7.66]
[1756664969627,1.72549208,205.08,205.03,1.72549208]
[1756664970025,1.72549208,205.09,205.04,7.66]
[1756664972028,1.72549208,205.09,205.03,9.38549208]
[1756664977935,1.72549208,205.09,205.03,7.66]
[1756664980736,1.72549208,205.05,205.01,7.51]
[1756664981034,1.72549208,205.03,205.01,7.51]
[1756664981233,1.72549208,205.05,205.01,7.51]
[1756664981429,1.72549208,205.05,205.0,4.10245645]
[1756664981630,1.72549208,205.05,205.01,7.51]
[1756664983040,1.72549208,205.03,205.01,7.51]
[1756664983939,1.72549208,205.04,204.99,7.51]
[1756664984341,1.72549208,205.04,204.98,4.10245645]
[1756664984543,1.72549208,205.04,204.99,7.51]
[1756664985334,1.72549208,205.04,204.98,4.10245645]
[1756664985540,1.72549208,205.04,204.98,7.51]
[1756664988639,12.96,205.06,204.98,7.51]
[1756664988842,1.72549208,205.04,204.98,7.51]
[1756664995246,1.72549208,205.02,204.98,7.51]
[1756664995446,1.72549208,205.02,204.97,7.51]
[1756664995848,1.72549208,205.02,204.96,5.82794853]
[1756664996148,1.72549208,205.02,204.96,1.72549208]
[1756664996346,1.72549208,205.02,204.97,7.51]
[1756664996947,1.72549208,205.02,204.96,7.51]
[1756664997748,1.72549208,205.0,204.96,7.51]
[1756664998050,1.72549208,205.0,204.94,4.10245645]
[1756664998348,1.72549208,205.01,204.95,9.23549208]
[1756664999542,5.4739747,205.11,204.96,7.99]
[1756664999748,7.2,205.21,205.11,7.51]
[1756664999948,29.48549208,205.2,205.13,1.72549208]
[1756665000245,1.72549208,205.16,205.14,4.60072267]
[1756665000447,7.2,205.15,205.08,1.72549208]
[1756665000647,7.2,205.13,205.09,12.11221032]
[1756665000847,7.2,205.13,205.1,4.60221032]
[1756665001048,7.2,205.13,205.11,4.60221032]
[1756665001251,1.72549208,205.14,205.12,4.60221032]
[1756665001450,1.72549208,205.14,205.13,4.60221032]
[1756665001953,2.69602404,205.17,205.13,4.60221032]
[1756665002147,2.69602404,205.17,205.14,4.60221032]
[1756665002346,7.2,205.16,205.15,4.60221032]
[1756665006952,7.2,205.16,205.15,4.60318762]
[1756665008049,7.68,205.16,205.06,11.37245645]
[1756665008253,2.69602404,205.11,205.07,4.54628957]
[1756665008453,7.19,205.09,205.06,7.27]
[1756665009545,2.69602404,205.08,205.03,7.27]
[1756665009750,9.88602404,205.08,205.02,7.27]
[1756665011259,9.88602404,205.08,205.02,11.37245645]
[1756665011550,95.06,205.07,205.03,7.27]
[1756665011957,2.69602404,205.11,205.03,7.27]
[1756665012153,330.41602404,205.14,205.06,7.27]
[1756665012454,330.41602404,205.14,205.07,7.27]
[1756665012654,120.96,205.13,205.07,7.27]
[1756665014355,128.15,205.13,205.07,7.27]
[1756665014558,120.96,205.12,205.07,7.27]
[1756665014856,128.15,205.12,205.06,7.27]
[1756665015257,7.19,205.12,205.06,7.27]
[1756665015460,7.19,205.12,205.07,7.27]
[1756665015759,120.9,205.11,205.06,4.10245645]
[1756665016058,120.9,205.11,205.07,11.37245645]
[1756665016356,120.9,205.11,205.07,7.27]
[1756665016558,120.9,205.11,205.06,4.10245645]
[1756665016855,120.9,205.11,205.07,7.27]
[1756665017054,120.9,205.11,205.06,4.10245645]
[1756665017557,120.9,205.11,205.07,7.27]
[1756665017754,120.9,205.11,205.06,4.10245645]
[1756665018155,120.9,205.11,205.07,7.27]
[1756665018359,120.9,205.11,205.06,4.10245645]
[1756665018560,120.9,205.11,205.07,7.27]
[1756665019060,7.19,205.1,205.07,7.27]
[1756665019261,7.19,205.1,205.06,7.27]
[1756665019659,7.19,205.1,205.04,4.10245645]
[1756665019863,7.19,205.1,205.05,7.27]
[1756665020066,7.19,205.1,205.06,4.36658346]
[1756665020258,7.19,205.1,205.07,11.63658346]
[1756665020554,7.19,205.1,205.08,4.36658346]
[1756665020760,7.19,205.1,205.09,4.36658346]
[1756665020957,9.88602404,205.1,205.09,4.36658346]
[1756665028473,9.88602404,205.1,205.04,7.27]
[1756665028771,9.88602404,205.1,205.06,7.27]
[1756665028973,9.88602404,205.1,205.07,11.70347829]
[1756665029173,9.88602404,205.1,205.08,4.43347829]
[1756665029475,9.88602404,205.1,205.09,4.43347829]
[1756665029775,120.6,205.1,205.09,4.43347829]
[1756665029980,334.91,205.14,205.1,7.27]
[1756665030277,120.56,205.13,205.11,4.43347829]
[1756665030577,127.75,205.13,205.12,4.43347829]
[1756665031169,130.44602404,205.13,205.12,4.43347829]
[1756665031467,130.44602404,205.13,205.05,4.10245645]
[1756665031672,7.19,205.09,205.06,4.43374903]
[1756665031873,120.66,205.08,205.05,7.27]
[1756665034565,120.66,205.08,204.98,2.69602404]
[1756665034566,7.19,205.06,205.0,4.10245645]
[1756665034766,2.69602404,205.04,204.99,4.10245645]
[1756665035170,7.19,205.03,204.99,4.10245645]
[1756665035376,120.78,205.02,204.99,7.27]
[1756665035571,7.19,205.03,204.99,7.27]
[1756665036068,18.78,205.02,204.99,11.37245645]
[1756665036276,18.78,205.02,204.99,7.27]
[1756665037870,18.78,205.02,204.98,4.10245645]
[1756665038172,7.2,205.0,204.97,4.10245645]
[1756665038367,7.2,204.97,204.94,4.10245645]
[1756665038676,28.94,204.96,204.94,4.10245645]
[1756665038871,28.94,204.96,204.93,4.10245645]
[1756665039072,28.94,204.96,204.93,7.85]
[1756665040773,36.14,204.96,204.93,7.85]
[1756665041281,36.14,204.96,204.91,7.85]
[1756665041282,28.94,204.96,204.91,7.85]
[1756665041781,28.94,204.96,204.9,4.10245645]
[1756665041980,28.94,204.96,204.91,7.85]
[1756665042182,28.94,204.96,204.9,4.10245645]
[1756665042680,28.94,204.96,204.91,7.85]
[1756665042984,5.47538983,205.12,204.96,7.85]
[1756665043282,7.2,205.12,205.03,7.85]
[1756665045681,9.05968044,205.22,205.03,11.94113899]
[1756665045682,8.26,205.11,205.03,11.94113899]
[1756665045987,8.26,205.11,205.03,7.85]
[1756665048478,8.26,205.11,205.03,10.54602404]
[1756665049394,7.2,205.1,205.03,7.85]
[1756665051184,9.89602404,205.1,205.03,7.85]
[1756665051994,7.2,205.1,205.03,7.85]
[1756665052295,18.9,205.09,205.03,7.85]
[1756665053190,7.2,205.1,205.03,7.85]
[1756665053494,28.98,205.1,205.03,7.85]
[1756665055098,7.2,205.13,205.06,7.85]
[1756665060998,7.2,205.13,205.04,2.69602404]
[1756665061298,9.89602404,205.13,205.03,7.85]
[1756665062596,9.89602404,205.13,204.99,4.09113899]
[1756665062597,7.18,205.09,204.99,11.94113899]
[1756665062791,7.18,205.09,204.99,7.85]
[1756665062997,9.87602404,205.09,204.99,7.85]
[1756665064296,5.47538983,205.17,205.05,2.69602404]
[1756665064498,7.18,205.21,205.12,7.85]
[1756665067395,7.18,205.21,205.13,4.36896863]
[1756665067592,7.18,205.21,205.14,4.36896863]
[1756665067892,57.46,205.22,205.15,12.21896863]
[1756665068091,57.46,205.22,205.16,4.36896863]
[1756665068296,57.46,205.22,205.15,7.85]
[1756665068297,7.18,205.25,205.17,4.36896863]
[1756665068496,7.18,205.25,205.18,4.36896863]
[1756665068497,100.24,205.24,205.18,4.36896863]
[1756665068802,100.24,205.24,205.19,4.36896863]
[1756665068993,0.84834597,205.26,205.2,4.36896863]
[1756665069300,7.19,205.24,205.21,4.36896863]
[1756665069490,0.84834597,205.26,205.22,4.36896863]
[1756665069694,7.19,205.24,205.23,4.36896863]
[1756665070202,130.53,205.24,205.15,7.85]
[1756665070397,130.53,205.24,205.16,4.36255162]
[1756665070693,130.53,205.24,205.15,7.85]
[1756665070694,130.53,205.24,205.17,4.36255162]
[1756665070898,130.53,205.24,205.18,4.36255162]
[1756665071091,123.34,205.24,205.19,4.36255162]
[1756665071293,123.34,205.24,205.2,4.36255162]
[1756665071499,123.26,205.24,205.21,4.36255162]
[1756665071696,7.19,205.24,205.22,4.36255162]
[1756665071893,7.19,205.24,205.23,4.36255162]
[1756665074499,130.37,205.24,205.23,4.36255162]
[1756665075810,7.19,205.24,205.23,4.36255162]
[1756665076105,51.95,205.24,205.23,4.36255162]
[1756665077511,51.95,205.24,205.23,4.34487308]
[1756665081111,51.95,205.24,205.23,4.34248838]
[1756665085515,51.95,205.24,205.15,7.2]
[1756665085717,51.95,205.24,205.16,4.35000149]
[1756665085910,51.95,205.24,205.17,4.35000149]
[1756665086116,51.95,205.24,205.18,4.35000149]
[1756665086315,7.19,205.23,205.19,4.35000149]
[1756665086517,7.19,205.23,205.2,4.35000149]
[1756665086714,7.19,205.23,205.21,4.35000149]
[1756665087014,7.19,205.23,205.22,4.35000149]
[1756665087315,9.88602404,205.23,205.22,4.35000149]
[1756665089018,7.19,205.23,205.22,4.35000149]
[1756665091419,7.19,205.25,205.22,4.35000149]
[1756665091624,7.19,205.25,205.23,4.35000149]
[1756665091820,42.06,205.26,205.23,7.2]
[1756665092123,81.86,205.26,205.24,11.55113108]
[1756665092318,81.86,205.26,205.25,4.35113108]
[1756665092522,89.05,205.26,205.25,4.35113108]
[1756665092722,81.86,205.26,205.25,4.35113108]
[1756665093227,89.05,205.26,205.25,4.35113108]
[1756665095126,81.86,205.26,205.25,4.35113108]
[1756665095425,89.05,205.26,205.25,4.35048543]
[1756665095727,7.19,205.26,205.25,4.35048543]
[1756665096024,129.53,205.26,205.25,4.35048543]
[1756665102435,130.01,205.26,205.25,4.35048543]
[1756665102626,130.01,205.26,205.16,7.41]
[1756665102829,7.18,205.23,205.17,4.35941663]
[1756665103027,129.34,205.22,205.18,4.35941663]
[1756665103226,7.18,205.21,205.19,4.35941663]
[1756665103422,7.18,205.21,205.16,7.41]
[1756665103737,7.18,205.21,205.17,4.36089026]
[1756665103932,7.18,205.21,205.18,11.77089026]
[1756665104232,7.18,205.21,205.19,4.36089026]
[1756665104432,7.18,205.21,205.2,4.36089026]
[1756665106037,7.66,205.21,205.11,7.41]
[1756665106229,7.18,205.17,205.11,7.41]
[1756665106430,7.18,205.15,205.11,7.41]
[1756665106932,7.18,205.15,205.08,4.09113899]
[1756665107132,7.18,205.15,205.09,7.41]
[1756665109033,9.87602404,205.15,205.09,7.41]
[1756665109939,9.87602404,205.15,205.07,4.09113899]
[1756665110338,9.87602404,205.15,205.06,11.50113899]
[1756665110535,2.69602404,205.12,205.06,7.41]
[1756665110838,7.18,205.1,205.06,7.41]
[1756665111240,122.06,205.11,205.06,7.41]
[1756665111430,7.18,205.1,205.06,7.41]
[1756665111742,7.18,205.1,205.03,4.09113899]
[1756665112135,7.18,205.1,205.02,11.50113899]
[1756665113642,7.18,205.1,205.02,11.49937579]
[1756665115143,7.18,205.1,205.02,7.41]
[1756665115339,7.18,205.08,205.02,7.41]
[1756665115534,2.69602404,205.09,204.99,11.49937579]
[1756665115738,7.18,205.08,204.99,11.49937579]
[1756665116334,7.18,205.08,204.99,7.41]
[1756665116545,33.82,205.07,204.99,7.41]
[1756665117242,9.87602404,205.06,204.99,7.41]
[1756665117947,10.04,205.05,204.99,7.41]
[1756665119342,7.18,205.09,204.99,7.41]
[1756665119545,7.18,205.09,204.98,2.69602404]
[1756665119741,34.36,205.08,204.99,7.41]
[1756665121052,7.18,205.09,204.99,7.41]
[1756665121238,26.66,205.08,204.99,7.41]
[1756665121441,7.18,205.07,204.99,7.41]
[1756665121641,20.7,205.06,204.99,7.41]
[1756665122447,7.18,205.07,204.99,7.41]
[1756665122647,20.34,205.06,204.99,7.41]
[1756665123147,7.18,205.05,204.99,7.41]
[1756665125246,28.92,205.04,204.98,7.41]
[1756665125449,7.18,205.05,204.98,7.41]
[1756665125651,36.94,205.04,204.98,7.41]
[1756665125851,44.56,205.04,204.98,7.41]
[1756665126253,7.18,205.05,204.98,7.41]
[1756665126551,51.8,205.04,204.98,7.41]
[1756665127568,342.18,205.2,204.98,7.41]
[1756665127569,7.18,205.22,204.99,0.48]
[1756665127764,7.18,205.27,205.15,7.41]
[1756665128062,7.18,205.25,205.15,10.10602404]
[1756665128961,7.18,205.25,205.16,4.36828739]
[1756665129164,7.18,205.25,205.17,4.36828739]
[1756665129364,7.18,205.25,205.18,4.36828739]
[1756665129568,7.18,205.25,205.19,4.36828739]
[1756665129768,34.56,205.26,205.2,4.36828739]
[1756665130060,78.74,205.25,205.21,4.36828739]
[1756665130260,7.18,205.24,205.22,4.36828739]
[1756665130460,7.18,205.24,205.23,4.36828739]
[1756665133563,7.18,205.24,205.18,7.18]
[1756665133957,7.18,205.24,205.19,11.54737484]
[1756665134262,7.18,205.24,205.2,4.36737484]
[1756665134460,7.18,205.24,205.21,4.36737484]
[1756665134656,7.18,205.24,205.22,4.36737484]
[1756665134862,7.18,205.24,205.23,4.36737484]
[1756665136570,58.2,205.24,205.23,4.36737484]
[1756665136870,7.18,205.24,205.23,4.36737484]
[1756665137164,50.82,205.28,205.23,4.36737484]
[1756665137373,50.82,205.28,205.25,7.18]
[1756665137569,7.18,205.31,205.26,11.54737484]
[1756665137872,49.24,205.3,205.27,11.54737484]
[1756665138171,7.18,205.3,205.27,7.18]
[1756665138368,96.22,205.3,205.28,4.36197186]
[1756665138665,96.22,205.3,205.27,7.18]
[1756665138866,96.22,205.3,205.28,4.3617482]
[1756665139068,96.22,205.3,205.27,7.18]
[1756665139268,96.22,205.3,205.28,4.36310067]
[1756665139465,124.06,205.29,205.23,7.18]
[1756665139662,124.06,205.29,205.25,7.18]
[1756665139862,124.06,205.29,205.26,4.36278756]
[1756665140068,124.06,205.29,205.27,4.36278756]
[1756665140269,124.06,205.29,205.28,4.36278756]
[1756665142370,131.24,205.29,205.28,4.36278756]
[1756665144074,131.24,205.29,205.21,9.87602404]
[1756665144373,131.24,205.29,205.22,4.36269111]
[1756665144774,131.24,205.29,205.23,4.3543879]
[1756665145073,131.25,205.29,205.24,4.3543879]
[1756665145274,131.25,205.29,205.25,11.5343879]
[1756665145573,131.25,205.29,205.26,4.3543879]
[1756665145773,131.25,205.29,205.27,4.3543879]
[1756665145975,131.25,205.29,205.25,7.18]
[1756665146274,7.19,205.28,205.26,4.35396401]
[1756665146475,7.19,205.28,205.25,7.18]
[1756665146476,7.19,205.28,205.27,4.35396401]
[1756665148275,124.06,205.29,205.27,4.35396401]
[1756665148475,131.25,205.29,205.25,7.18]
[1756665148675,131.25,205.29,205.26,4.3530946]
[1756665148875,131.25,205.29,205.27,4.3530946]
[1756665149178,131.25,205.29,205.25,7.18]
[1756665149371,131.25,205.29,205.26,4.3523809]
[1756665149571,131.25,205.29,205.27,4.3523809]
[1756665149871,131.25,205.29,205.25,7.18]
[1756665150070,7.19,205.28,205.26,4.35256195]
[1756665150274,7.19,205.28,205.27,4.35256195]
[1756665154079,124.06,205.29,205.27,4.35256195]
[1756665154277,124.06,205.29,205.22,7.18]
[1756665154479,124.06,205.29,205.23,4.35127978]
[1756665154771,131.25,205.29,205.25,7.18]
[1756665154977,131.25,205.29,205.26,4.35127978]
[1756665155176,131.25,205.29,205.27,4.35127978]
[1756665155378,7.19,205.33,205.27,7.18]
[1756665155575,7.19,205.31,205.28,4.35002377]
[1756665155779,7.19,205.31,205.29,4.35002377]
[1756665156073,123.18,205.3,205.25,7.18]
[1756665156278,7.19,205.3,205.26,11.53052377]
[1756665156478,123.16,205.29,205.27,4.35052377]
[1756665156777,123.16,205.29,205.28,4.35052377]
[1756665157280,7.19,205.3,205.28,4.35052377]
[1756665157478,7.19,205.3,205.29,4.35052377]
[1756665157681,94.44,205.3,205.29,4.35052377]
[1756665158379,101.63,205.3,205.29,4.35052377]
[1756665159179,7.19,205.3,205.29,4.3495759]
[1756665159379,130.27,205.3,205.29,4.3495759]
[1756665159580,130.21,205.3,205.29,4.3495759]
[1756665159780,7.19,205.3,205.29,4.3495759]
[1756665159977,130.19,205.3,205.29,4.3495759]
[1756665160182,130.15,205.3,205.29,4.3495759]
[1756665160582,7.19,205.3,205.29,4.3495759]
[1756665160782,130.13,205.3,205.29,4.3495759]
[1756665161584,7.19,205.37,205.3,7.76]
[1756665161785,122.9,205.36,205.31,12.1095759]
[1756665162081,7.19,205.35,205.32,4.3495759]
[1756665162282,7.19,205.35,205.27,2.69602404]
[1756665162283,7.19,205.35,205.28,7.76]
[1756665162475,7.19,205.35,205.29,4.35035878]
[1756665162672,122.9,205.36,205.3,4.35035878]
[1756665162883,122.9,205.36,205.31,4.35035878]
[1756665163083,7.19,205.33,205.24,7.76]
[1756665163283,122.86,205.32,205.25,4.35219703]
[1756665163480,7.19,205.3,205.26,12.11219703]
[1756665163679,7.19,205.3,205.27,4.35219703]
[1756665163876,2.69602404,205.31,205.28,4.35219703]
[1756665164080,7.19,205.3,205.22,7.76]
[1756665164282,7.19,205.3,205.23,4.35521664]
[1756665164583,7.19,205.3,205.24,4.35521664]
[1756665164779,2.69602404,205.31,205.25,4.35521664]
[1756665164977,2.69602404,205.31,205.26,4.35521664]
[1756665165180,2.69602404,205.31,205.27,4.35521664]
[1756665165481,7.19,205.3,205.28,4.35521664]
[1756665165680,7.19,205.3,205.22,7.76]
[1756665165876,7.19,205.3,205.23,4.35823508]
[1756665166084,7.19,205.3,205.24,4.35823508]
[1756665166287,7.19,205.3,205.22,7.76]
[1756665166485,7.19,205.3,205.23,4.35823508]
[1756665166684,7.19,205.3,205.22,7.76]
[1756665166685,7.19,205.3,205.24,4.35823508]
[1756665166882,2.69602404,205.31,205.25,4.35823508]
[1756665167083,2.69602404,205.31,205.26,4.35823508]
[1756665167283,2.69602404,205.31,205.27,4.35823508]
[1756665167483,7.19,205.3,205.28,4.35823508]
[1756665167683,7.19,205.3,205.29,4.35823508]
[1756665173591,7.19,205.3,205.29,4.39336899]
[1756665174789,129.77,205.3,205.29,4.39336899]
[1756665177091,129.77,205.3,205.24,7.76]
[1756665177299,7.19,205.29,205.25,12.15173021]
[1756665177495,7.19,205.29,205.26,4.39173021]
[1756665177797,7.19,205.29,205.27,4.39173021]
[1756665178096,7.19,205.29,205.28,4.39173021]
[1756665180501,7.67,205.29,205.2,4.06990459]
[1756665180803,7.19,205.26,205.19,11.82990459]
[1756665181102,122.36,205.25,205.19,11.82990459]
[1756665181801,7.19,205.26,205.19,11.82990459]
[1756665182003,39.22,205.25,205.19,4.06990459]
[1756665182204,39.22,205.25,205.2,7.76]
[1756665182402,39.22,205.25,205.19,4.06990459]
[1756665182703,9.88602404,205.27,205.2,7.76]
[1756665182903,7.19,205.27,205.2,7.76]
[1756665183101,122.28,205.26,205.2,11.82990459]
[1756665183300,122.28,205.26,205.21,7.76]
[1756665183498,122.28,205.26,205.22,2.69602404]
[1756665183700,122.28,205.25,205.23,7.76]
[1756665184004,7.19,205.3,205.22,7.76]
[1756665184204,122.26,205.29,205.22,7.76]
[1756665185504,122.26,205.29,205.22,11.82990459]
[1756665185705,122.26,205.29,205.23,7.76]
[1756665189009,7.19,205.28,205.23,7.76]
[1756665189503,129.45,205.29,205.22,11.66883418]
[1756665189705,122.06,205.28,205.22,11.66883418]
[1756665191010,122.06,205.28,205.22,7.57]
[1756665193103,7.19,205.27,205.22,7.57]
[1756665193305,129.25,205.28,205.21,14.36485822]
[1756665196414,129.25,205.28,205.22,7.57]
[1756665202522,121.56,205.27,205.22,7.57]
[1756665202724,128.75,205.27,205.21,14.36485822]
[1756665203119,7.19,205.26,205.22,11.66883418]
[1756665203314,121.56,205.27,205.23,7.57]
[1756665203517,7.19,205.26,205.23,7.57]
[1756665205625,121.56,205.27,205.23,7.57]
[1756665205824,7.21,205.26,205.23,7.57]
[1756665206025,34.46,205.25,205.23,7.57]
[1756665206924,34.46,205.25,205.22,4.09883418]
[1756665207124,34.46,205.25,205.21,4.09883418]
[1756665207423,34.46,205.25,205.19,4.09883418]
[1756665207424,7.21,205.24,205.19,4.09883418]
[1756665208527,7.21,205.24,205.18,75.84460132]
[1756665209421,34.46,205.25,205.18,75.84460132]
[1756665209826,7.21,205.24,205.18,75.84460132]
[1756665210718,34.46,205.25,205.18,75.84460132]
[1756665210925,7.21,205.24,205.18,75.84460132]
[1756665212025,7.21,205.24,205.18,71.74576714]
[1756665212425,34.46,205.25,205.17,11.66883418]
[1756665212930,7.21,205.24,205.18,4.09883418]
[1756665213229,7.21,205.24,205.17,11.66883418]
[1756665214230,7.21,205.22,205.17,11.66883418]
[1756665214429,7.21,205.22,205.15,4.09883418]
[1756665215526,33.02,205.23,205.14,11.66883418]
[1756665215729,7.21,205.2,205.14,4.09883418]
[1756665216038,7.21,205.21,205.14,14.36485822]
[1756665216230,7.21,205.21,205.14,10.26602404]
[1756665218334,7.2,205.2,205.14,10.26602404]
[1756665220532,7.2,205.2,205.14,7.57]
[1756665220832,7.2,205.2,205.12,4.09883418]
[1756665221036,7.2,205.2,205.11,7.98]
[1756665221037,9.89602404,205.2,205.11,7.98]
[1756665222125,7.2,205.2,205.11,7.98]
[1756665227530,88.18,205.19,205.11,7.98]
[1756665229634,7.2,205.2,205.11,7.98]
[1756665229835,117.6,205.19,205.11,7.98]